bitfinex/quotes_BTCUSD_20251201
["timestamp","ask_amount","ask_price","bid_price","bid_amount"]
[1764559422707,0.006,86552.0,86551.0,0.00011852]
[1764559422894,0.006,86552.0,86551.0,0.23119615]
[1764559423095,0.01332,86552.0,86551.0,0.23119615]
[1764559423255,0.006,86552.0,86551.0,0.23119615]
[1764559423462,0.01332,86552.0,86551.0,0.23119615]
[1764559423662,0.006,86552.0,86551.0,0.23119615]
[1764559423882,0.01332,86552.0,86551.0,0.23119615]
[1764559424304,0.00732,86552.0,86551.0,0.23119615]
[1764559424705,0.01132,86552.0,86551.0,0.23119615]
[1764559426372,0.004,86552.0,86551.0,0.23119615]
[1764559427578,0.00732,86566.0,86564.0,0.23104292]
[1764559427952,0.04512,86575.0,86571.0,0.23102424]
[1764559428154,0.235424,86572.0,86571.0,0.23102424]
[1764559429831,0.228104,86572.0,86571.0,0.23102424]
[1764559430390,0.235104,86572.0,86571.0,0.23202424]
[1764559430802,0.228104,86572.0,86571.0,0.23102424]
[1764559430965,0.233104,86572.0,86571.0,0.23202424]
[1764559431301,0.23295892,86572.0,86571.0,0.23202424]
[1764559432401,0.23295892,86572.0,86571.0,0.23102424]
[1764559432607,0.22795892,86572.0,86571.0,0.23102424]
[1764559432785,0.22995892,86572.0,86571.0,0.23202424]
[1764559433192,0.22795892,86572.0,86571.0,0.23102424]
[1764559433375,0.23095892,86572.0,86571.0,0.23202424]
[1764559437626,0.39112892,86572.0,86571.0,0.001]
[1764559438436,0.29431892,86572.0,86571.0,0.001]
[1764559441191,0.23095892,86572.0,86571.0,0.001]
[1764559443889,0.39112892,86572.0,86571.0,0.001]
[1764559444288,0.40246578,86572.0,86571.0,0.001]
[1764559444704,0.62215049,86572.0,86571.0,0.001]
[1764559445122,0.63348735,86572.0,86571.0,0.001]
[1764559445635,0.01155227,86563.0,86558.0,0.01155294]
[1764559445789,0.01155227,86563.0,86550.0,0.54107193]
[1764559445790,0.01155321,86556.0,86551.0,0.0116724]
[1764559445993,0.06336,86552.0,86551.0,0.00011852]
[1764559446215,0.00732,86555.0,86553.0,0.23106976]
[1764559446420,0.00732,86555.0,86551.0,0.00011852]
[1764559446622,0.06336,86552.0,86551.0,0.00011852]
[1764559447170,0.06736,86552.0,86551.0,0.00111852]
[1764559447738,0.16417,86552.0,86551.0,0.00111852]
[1764559448294,0.16417,86552.0,86540.0,0.0002]
[1764559448295,0.23110433,86541.0,86540.0,0.0002]
[1764559448449,0.34867433,86541.0,86540.0,0.0002]
[1764559448653,0.44548433,86541.0,86540.0,0.0002]
[1764559448979,0.77982119,86541.0,86540.0,0.0002]
[1764559449192,0.01155735,86525.0,86519.0,0.01155815]
[1764559449332,0.00732,86524.0,86521.0,0.01155788]
[1764559449535,0.05421,86524.0,86521.0,0.24271326]
[1764559450323,0.05421,86524.0,86522.0,0.23115272]
[1764559450761,0.05421,86524.0,86522.0,0.23115397]
[1764559451159,0.06336,86523.0,86522.0,0.23115397]
[1764559451360,0.06336,86523.0,86521.0,0.01155788]
[1764559451995,0.06336,86522.0,86521.0,0.01155788]
[1764559453029,0.005,86523.0,86522.0,0.23115508]
[1764559453566,0.01232,86523.0,86521.0,0.115529]
[1764559453924,0.01232,86523.0,86522.0,0.23115508]
[1764559454288,0.00732,86523.0,86522.0,0.23115508]
[1764559454702,0.01232,86523.0,86522.0,0.23115508]
[1764559457018,0.005,86523.0,86522.0,0.23115508]
[1764559457215,0.01133686,86522.0,86521.0,0.01155788]
[1764559457619,0.01232,86523.0,86522.0,0.23115508]
[1764559458312,0.07408,86523.0,86522.0,0.23115508]
[1764559458512,0.16462,86523.0,86522.0,0.23115508]
[1764559458860,0.07408,86523.0,86522.0,0.23115508]
[1764559459420,0.16462,86523.0,86519.0,0.01195232]
[1764559459547,0.29292042,86520.0,86519.0,0.00039417]
[1764559459748,0.06176,86520.0,86519.0,0.00039417]
[1764559460043,0.16363686,86520.0,86519.0,0.00039417]
[1764559460248,0.1523,86520.0,86519.0,0.00039417]
[1764559460665,0.16763686,86520.0,86519.0,0.00039417]
[1764559461529,0.16363686,86520.0,86519.0,0.00039417]
[1764559461899,0.16863686,86520.0,86519.0,0.00039417]
[1764559463410,0.16363686,86520.0,86519.0,0.00039417]
[1764559463774,0.17063686,86520.0,86519.0,0.00039417]
[1764559465025,0.55615985,86520.0,86519.0,0.00039417]
[1764559466276,0.55715985,86520.0,86519.0,0.00039417]
[1764559466676,0.55015985,86520.0,86519.0,0.00039417]
[1764559467295,0.56015985,86520.0,86519.0,0.00039417]
[1764559467498,0.58480735,86520.0,86519.0,0.00039417]
[1764559469484,0.58380735,86520.0,86519.0,0.00039417]
[1764559469817,0.57380735,86520.0,86519.0,0.00039417]
[1764559470008,0.58780735,86520.0,86519.0,0.00039417]
[1764559471316,0.62804432,86511.0,86510.0,0.0002]
[1764559471522,0.24257479,86491.0,86490.0,0.0002]
[1764559471679,0.34584479,86491.0,86490.0,0.0002]
[1764559471881,0.43843479,86491.0,86490.0,0.0002]
[1764559473009,0.44343479,86491.0,86490.0,0.0002]
[1764559474367,0.43209793,86491.0,86490.0,0.0002]
[1764559474539,0.44343479,86491.0,86490.0,0.0002]
[1764559475690,0.01156122,86496.0,86490.0,0.0002]
[1764559475892,0.00832,86491.0,86490.0,0.00136114]
[1764559476196,0.01632,86491.0,86490.0,0.0002]
[1764559476533,0.07558,86491.0,86490.0,0.0002]
[1764559476743,0.24279502,86493.0,86490.0,0.0002]
[1764559476944,0.07955767,86511.0,86490.0,0.0002]
[1764559476945,0.01155975,86507.0,86490.0,0.0002]
[1764559477142,0.01156042,86502.0,86497.0,0.55336451]
[1764559477358,0.01156069,86500.0,86496.0,0.01156122]
[1764559477758,0.01156055,86501.0,86497.0,0.24278285]
[1764559477955,0.24272982,86516.0,86508.0,0.01155962]
[1764559478230,0.24272982,86516.0,86503.0,0.24276378]
[1764559478231,0.00732,86510.0,86503.0,0.24276378]
[1764559478507,0.00732,86510.0,86506.0,0.01155989]
[1764559478975,0.01155949,86509.0,86504.0,0.01156015]
[1764559479168,0.01155949,86509.0,86502.0,0.01156042]
[1764559479169,0.10882,86505.0,86502.0,0.01156042]
[1764559479388,0.01155949,86509.0,86505.0,0.01156002]
[1764559480025,0.24276301,86505.0,86499.0,0.55336424]
[1764559480341,0.01533686,86505.0,86502.0,0.01156042]
[1764559480546,0.01156002,86505.0,86502.0,0.01156042]
[1764559481428,0.02289675,86506.0,86502.0,0.24276866]
[1764559481644,0.02289675,86506.0,86503.0,0.01156029]
[1764559481878,0.23119249,86508.0,86504.0,0.01156015]
[1764559482021,0.01655949,86509.0,86505.0,0.01156002]
[1764559482236,0.01155949,86509.0,86505.0,0.01156002]
[1764559482749,0.00732,86508.0,86506.0,0.01155989]
[1764559483213,0.01332,86508.0,86506.0,0.01155989]
[1764559483401,0.00039434,86511.0,86509.0,0.23118753]
[1764559483586,0.00732,86510.0,86509.0,0.23118753]
[1764559485404,0.00039434,86511.0,86507.0,0.01155975]
[1764559485616,0.00039434,86511.0,86510.0,0.23118714]
[1764559486889,0.00339434,86511.0,86510.0,0.23118714]
[1764559488104,0.00039434,86511.0,86510.0,0.23118714]
[1764559488226,0.00139434,86511.0,86510.0,0.23118714]
[1764559494118,0.00139434,86511.0,86510.0,0.55418714]
[1764559495073,0.00039434,86511.0,86510.0,0.55418714]
[1764559495303,0.00139434,86511.0,86510.0,0.55418714]
[1764559497765,0.00139434,86511.0,86510.0,0.56150714]
[1764559497967,0.24263152,86551.0,86545.0,0.01155468]
[1764559498176,9.116e-05,86551.0,86550.0,0.2310803]
[1764559499049,9.116e-05,86551.0,86550.0,0.5540803]
[1764559499253,0.00109116,86551.0,86550.0,0.5540803]
[1764559499813,9.116e-05,86551.0,86550.0,0.5540803]
[1764559501019,0.00809116,86551.0,86550.0,0.5570803]
[1764559501324,9.116e-05,86551.0,86550.0,0.5550803]
[1764559501531,0.00109116,86551.0,86550.0,0.5550803]
[1764559501969,0.00109116,86551.0,86550.0,0.2320803]
[1764559502996,0.00109116,86551.0,86550.0,0.2330803]
[1764559506524,0.22795892,86572.0,86571.0,0.23102424]
[1764559506717,0.22805021,86572.0,86571.0,0.24251024]
[1764559506924,0.22805021,86572.0,86571.0,0.56551024]
[1764559507100,0.03469682,86618.0,86571.0,0.56551024]
[1764559507101,0.0493,86611.0,86599.0,0.23094954]
[1764559507467,0.00079496,86600.0,86599.0,0.24243554]
[1764559508283,0.00079496,86600.0,86599.0,0.011486]
[1764559508439,0.06975496,86600.0,86599.0,0.012486]
[1764559508654,0.00679496,86600.0,86599.0,0.012486]
[1764559508853,0.00679496,86600.0,86599.0,0.25854563]
[1764559511771,0.00679496,86600.0,86599.0,0.58154563]
[1764559513142,0.00079496,86600.0,86599.0,0.58054563]
[1764559513518,0.00079496,86600.0,86599.0,0.25754563]
[1764559515726,0.00479496,86600.0,86599.0,0.25854563]
[1764559517094,0.07073496,86600.0,86599.0,0.012486]
[1764559517424,0.17030496,86600.0,86599.0,0.012486]
[1764559518021,0.16630496,86600.0,86599.0,0.011486]
[1764559518471,0.08205496,86600.0,86599.0,0.012486]
[1764559520558,0.01611496,86600.0,86599.0,0.012486]
[1764559520965,0.08205496,86600.0,86599.0,0.012486]
[1764559521286,0.01611496,86600.0,86599.0,0.012486]
[1764559522292,0.17430496,86600.0,86599.0,0.012486]
[1764559522456,0.17430496,86600.0,86599.0,0.001]
[1764559522657,0.18564182,86600.0,86599.0,0.001]
[1764559523230,0.00879496,86600.0,86599.0,0.012486]
[1764559523507,0.00879496,86600.0,86599.0,0.24343554]
[1764559523730,0.01611496,86600.0,86599.0,0.24343554]
[1764559523860,0.00879496,86600.0,86599.0,0.24343554]
[1764559524717,0.00879496,86600.0,86599.0,0.012486]
[1764559525083,0.00879496,86600.0,86599.0,0.11645712]
[1764559526304,0.00879496,86600.0,86599.0,0.11761393]
[1764559526561,0.00879496,86600.0,86599.0,0.45093009]
[1764559528125,0.00079496,86600.0,86599.0,0.44993009]
[1764559528328,0.00279496,86600.0,86599.0,0.45093009]
[1764559537318,0.00279496,86600.0,86599.0,0.42797112]
[1764559538459,0.00279496,86600.0,86599.0,0.324]
[1764559538696,0.00279496,86600.0,86599.0,0.42797112]
[1764559538909,0.00279496,86600.0,86599.0,0.001]
[1764559538910,0.15898496,86600.0,86599.0,0.001]
[1764559539327,0.17032182,86600.0,86599.0,0.001]
[1764559539674,0.19860818,86600.0,86599.0,0.001]
[1764559540088,0.01154854,86591.0,86585.0,0.23098475]
[1764559540253,0.06531867,86590.0,86585.0,0.01154934]
[1764559540456,0.05377,86590.0,86587.0,0.24252998]
[1764559540657,0.05377,86590.0,86589.0,0.23097622]
[1764559541175,0.05377,86590.0,86588.0,0.23097684]
[1764559541359,0.01154761,86598.0,86594.0,0.01154814]
[1764559541557,0.00732,86597.0,86595.0,0.01154801]
[1764559541860,0.01886774,86597.0,86591.0,0.01154854]
[1764559541991,0.066,86592.0,86591.0,0.01154854]
[1764559542591,0.066,86592.0,86587.0,0.24352868]
[1764559542822,0.10173841,86592.0,86587.0,0.01154907]
[1764559542975,0.10173841,86592.0,86587.0,0.24253016]
[1764559543182,0.003,86590.0,86589.0,0.01154881]
[1764559543433,0.10173841,86592.0,86589.0,0.01154881]
[1764559543636,0.09019,86592.0,86589.0,0.01154881]
[1764559543880,0.004,86592.0,86591.0,0.24251942]
[1764559544031,0.01133686,86593.0,86592.0,0.01154841]
[1764559544236,0.01154801,86595.0,86592.0,0.01154841]
[1764559544237,0.00732,86597.0,86594.0,0.01154814]
[1764559545745,0.01154761,86598.0,86593.0,0.01154827]
[1764559545951,0.00732,86597.0,86593.0,0.01154827]
[1764559546486,0.00732,86597.0,86593.0,0.02303427]
[1764559546896,0.00732,86597.0,86594.0,0.01254814]
[1764559546897,0.01232,86597.0,86594.0,0.01254814]
[1764559547092,0.00732,86597.0,86594.0,0.01154814]
[1764559547391,0.01232,86597.0,86594.0,0.01154814]
[1764559547595,0.00732,86597.0,86594.0,0.2425087]
[1764559547789,0.00732,86597.0,86595.0,0.23095755]
[1764559547975,0.01232,86597.0,86595.0,0.23095755]
[1764559549663,0.00732,86597.0,86596.0,0.10397112]
[1764559549870,0.00079496,86600.0,86599.0,0.23094954]
[1764559550203,0.00079496,86600.0,86599.0,0.55394954]
[1764559551242,0.00279496,86600.0,86599.0,0.55494954]
[1764559558180,0.00179496,86600.0,86599.0,0.55794954]
[1764559559491,0.00179496,86600.0,86599.0,0.70644954]
[1764559560533,0.00025383,86608.0,86607.0,0.55392821]
[1764559560851,0.00034961,86608.0,86607.0,0.57688718]
[1764559562230,0.00034961,86608.0,86607.0,0.57788718]
[1764559562611,0.00134961,86608.0,86607.0,0.57888718]
[1764559562812,0.00134961,86608.0,86607.0,0.25588718]
[1764559565737,0.00134961,86608.0,86607.0,0.02495897]
[1764559565979,0.39383515,86608.0,86607.0,0.002]
[1764559566370,0.16290961,86608.0,86607.0,0.002]
[1764559566576,0.17424647,86608.0,86607.0,0.001]
[1764559566797,0.07683647,86608.0,86607.0,0.001]
[1764559566965,0.17324647,86608.0,86607.0,0.001]
[1764559567169,0.18324647,86608.0,86607.0,0.003]
[1764559567415,0.24576946,86608.0,86607.0,0.003]
[1764559567585,0.23099474,86583.0,86576.0,0.01155054]
[1764559567795,0.01154987,86581.0,86577.0,0.01155041]
[1764559567998,0.01154987,86581.0,86576.0,0.01155054]
[1764559568166,0.01154987,86581.0,86563.0,0.23104549]
[1764559568167,0.01155054,86576.0,86569.0,0.0014697]
[1764559568367,0.24257244,86573.0,86569.0,0.0014697]
[1764559568591,0.01155081,86574.0,86570.0,0.12722173]
[1764559568836,0.01155014,86579.0,86571.0,0.01155121]
[1764559568981,0.01155014,86579.0,86577.0,0.001]
[1764559569186,0.01155054,86576.0,86572.0,0.01155107]
[1764559569603,0.001,86573.0,86572.0,0.01155107]
[1764559569808,0.01155041,86577.0,86573.0,0.01155094]
[1764559571132,0.01155041,86577.0,86574.0,0.01155081]
[1764559571313,0.01155041,86577.0,86573.0,0.02303694]
[1764559571514,0.01155054,86576.0,86573.0,0.02303694]
[1764559571712,0.00732,86579.0,86575.0,0.01155067]
[1764559571951,0.00732,86579.0,86578.0,0.23100556]
[1764559572951,0.01032,86579.0,86578.0,0.23100556]
[1764559573153,0.00732,86579.0,86578.0,0.23100556]
[1764559573501,0.01032,86579.0,86578.0,0.23200556]
[1764559573710,0.07447,86579.0,86578.0,0.001]
[1764559573956,0.01032,86579.0,86578.0,0.01714355]
[1764559574731,0.003,86579.0,86578.0,0.01714355]
[1764559576168,0.39556289,86579.0,86578.0,0.01714355]
[1764559576371,0.29815289,86579.0,86578.0,0.001]
[1764559577688,0.003,86579.0,86578.0,0.001]
[1764559583926,0.06857,86579.0,86578.0,0.001]
[1764559584132,0.39256289,86579.0,86578.0,0.001]
[1764559584565,0.43841289,86579.0,86578.0,0.001]
[1764559588277,0.44974975,86579.0,86578.0,0.001]
[1764559590295,0.44974975,86579.0,86570.0,0.00039496]
[1764559590296,0.23102424,86571.0,86570.0,0.00039496]
[1764559590499,0.3162011,86571.0,86570.0,0.00039496]
[1764559590696,0.4117911,86571.0,86570.0,0.00039496]
[1764559591795,0.4167911,86571.0,86570.0,0.00039496]
[1764559593151,0.4177911,86571.0,86570.0,0.00039496]
[1764559596224,0.44247524,86571.0,86570.0,0.00039496]
[1764559597245,0.44247761,86571.0,86570.0,0.00039496]
[1764559597675,0.5050006,86571.0,86570.0,0.00039496]
[1764559598088,0.30494549,86548.0,86547.0,0.00015295]
[1764559598311,0.24271204,86523.0,86520.0,0.0002]
[1764559598461,0.01887762,86523.0,86520.0,0.00029116]
[1764559598667,0.06652,86521.0,86520.0,0.00029116]
[1764559599305,0.39326775,86521.0,86520.0,0.00029116]
[1764559599464,0.16211,86521.0,86520.0,0.00029116]
[1764559600491,0.16311,86521.0,86520.0,0.00029116]
[1764559601286,0.06752,86521.0,86520.0,0.23145158]
[1764559602094,0.16311,86521.0,86520.0,0.00029116]
[1764559602711,0.17444686,86521.0,86520.0,0.00029116]
[1764559603920,0.00832,86521.0,86520.0,0.23145158]
[1764559604166,0.00832,86521.0,86520.0,0.23300829]
[1764559604529,0.07484,86521.0,86520.0,0.23300829]
[1764559606572,0.07484,86521.0,86520.0,0.00184787]
[1764559607142,0.07484,86521.0,86520.0,0.23300829]
[1764559608367,0.001,86521.0,86520.0,0.23300829]
[1764559608600,0.001,86521.0,86520.0,0.24448126]
[1764559609220,0.001,86521.0,86520.0,0.27179095]
[1764559609421,0.001,86521.0,86520.0,0.24448126]
[1764559610786,0.001,86521.0,86520.0,0.27174167]
[1764559610982,0.001,86521.0,86520.0,0.24448126]
[1764559613837,0.001,86521.0,86520.0,0.23300829]
[1764559615566,0.39705775,86521.0,86520.0,0.00184787]
[1764559615763,0.40839461,86521.0,86520.0,0.00184787]
[1764559616545,0.40739461,86521.0,86520.0,0.00184787]
[1764559616737,0.73239461,86521.0,86520.0,0.00184787]
[1764559616889,0.73039461,86521.0,86520.0,0.00184787]
[1764559617310,0.73339461,86521.0,86520.0,0.00184787]
[1764559618181,0.82048244,86521.0,86520.0,0.00184787]
[1764559618531,0.81748244,86521.0,86520.0,0.00184787]
[1764559618943,0.82148244,86521.0,86520.0,0.00184787]
[1764559619189,0.81748244,86521.0,86520.0,0.00184787]
[1764559619767,0.82448244,86521.0,86520.0,0.00184787]
[1764559623350,0.72605775,86521.0,86520.0,0.00184787]
[1764559623539,0.51215502,86521.0,86520.0,0.00184787]
[1764559623711,0.007,86521.0,86520.0,0.00184787]
[1764559623911,0.0807,86521.0,86520.0,0.00184787]
[1764559624114,0.007,86521.0,86520.0,0.23300829]
[1764559624314,0.01432,86521.0,86520.0,0.23300829]
[1764559624482,0.01432,86521.0,86520.0,0.00184787]
[1764559624687,0.01432,86521.0,86520.0,0.23300829]
[1764559625110,0.00832,86521.0,86520.0,0.23300829]
[1764559625339,0.01132,86521.0,86520.0,0.23300829]
[1764559625538,0.004,86521.0,86520.0,0.23300829]
[1764559626833,0.03083144,86558.0,86554.0,0.24262083]
[1764559627041,0.04821,86555.0,86554.0,0.011486]
[1764559627247,0.00732,86557.0,86554.0,0.011486]
[1764559627419,0.04821,86568.0,86564.0,0.01155214]
[1764559627622,0.01155054,86576.0,86564.0,0.01155214]
[1764559627623,0.00732,86570.0,86569.0,0.24258105]
[1764559627827,0.00732,86570.0,86569.0,0.25406705]
[1764559628186,0.00732,86570.0,86569.0,0.02303747]
[1764559628559,0.00732,86570.0,86569.0,0.011486]
[1764559628560,0.17623686,86570.0,86569.0,0.011486]
[1764559628778,0.19377836,86570.0,86569.0,0.011486]
[1764559628907,0.10257836,86570.0,86569.0,0.011486]
[1764559629126,0.10557836,86570.0,86569.0,0.012486]
[1764559629331,0.10257836,86570.0,86569.0,0.011486]
[1764559629574,0.11391522,86570.0,86569.0,0.011486]
[1764559629721,0.11991522,86570.0,86569.0,0.011486]
[1764559631030,0.21111522,86570.0,86569.0,0.011486]
[1764559631224,0.01332,86570.0,86569.0,0.011486]
[1764559631655,0.19977836,86570.0,86569.0,0.011486]
[1764559632048,0.0797,86570.0,86569.0,0.011486]
[1764559632311,0.01332,86570.0,86569.0,0.011486]
[1764559634801,0.006,86570.0,86569.0,0.011486]
[1764559634917,0.01332,86570.0,86569.0,0.011486]
[1764559635117,0.01332,86570.0,86569.0,0.24251558]
[1764559635522,0.01332,86570.0,86569.0,0.011486]
[1764559636890,0.41928377,86570.0,86569.0,0.011486]
[1764559637450,0.41928377,86570.0,86551.0,0.24263091]
[1764559637451,0.01155294,86558.0,86551.0,0.24263091]
[1764559637753,0.06083,86552.0,86551.0,0.11554828]
[1764559638085,0.04361,86553.0,86551.0,0.34662591]
[1764559638284,0.00732,86557.0,86554.0,0.01155348]
[1764559638491,0.23107103,86554.0,86551.0,0.01157716]
[1764559638698,0.06083,86552.0,86551.0,0.01157716]
[1764559638925,0.06183,86552.0,86551.0,0.01257716]
[1764559639080,0.38912496,86552.0,86551.0,0.01157716]
[1764559639530,0.01032,86557.0,86554.0,0.01155348]
[1764559639869,0.00732,86557.0,86554.0,0.24262103]
[1764559640076,0.00732,86557.0,86554.0,0.01155348]
[1764559640286,0.24993471,86557.0,86554.0,0.01155348]
[1764559640523,0.01887308,86557.0,86554.0,0.01155348]
[1764559640731,0.00732,86557.0,86554.0,0.24262271]
[1764559641846,0.01232,86557.0,86554.0,0.24362271]
[1764559642439,0.01232,86557.0,86554.0,0.01255348]
[1764559642839,0.02387308,86557.0,86554.0,0.01255348]
[1764559643669,0.02387308,86557.0,86556.0,0.00041284]
[1764559644109,0.08470308,86557.0,86556.0,0.00041284]
[1764559644679,0.17400308,86557.0,86556.0,0.00041284]
[1764559644874,0.17900308,86557.0,86556.0,0.00141284]
[1764559645078,0.08470308,86557.0,86556.0,0.00141284]
[1764559645306,0.07315,86557.0,86556.0,0.00141284]
[1764559647469,0.06583,86557.0,86556.0,0.23247712]
[1764559647622,0.07315,86557.0,86556.0,0.00141284]
[1764559647822,0.30421161,86557.0,86556.0,0.00141284]
[1764559648071,0.40984847,86557.0,86556.0,0.00141284]
[1764559648622,0.39851161,86557.0,86556.0,0.00141284]
[1764559652342,0.16745,86557.0,86556.0,0.00141284]
[1764559653056,0.005,86557.0,86556.0,0.00141284]
[1764559653258,0.01232,86557.0,86556.0,0.00141284]
[1764559656269,0.41548847,86557.0,86556.0,0.00141284]
[1764559657243,0.40816847,86557.0,86556.0,0.00141284]
[1764559657447,0.41548847,86557.0,86556.0,0.00141284]
[1764559659581,0.40415161,86557.0,86556.0,0.00141284]
[1764559660197,0.41548847,86557.0,86556.0,0.00141284]
[1764559660818,0.61659795,86552.0,86551.0,9.116e-05]
[1764559661038,0.01155628,86533.0,86530.0,0.011486]
[1764559661177,0.28487657,86531.0,86530.0,0.011486]
[1764559661380,0.28487657,86531.0,86520.0,0.0002]
[1764559661381,0.23115508,86522.0,86521.0,0.011486]
[1764559661568,0.23847508,86522.0,86521.0,0.01160415]
[1764559661783,0.16809,86522.0,86521.0,0.01160415]
[1764559662625,0.07379,86522.0,86521.0,0.01160415]
[1764559663230,0.04478,86531.0,86528.0,0.24269519]
[1764559663423,0.04478,86531.0,86530.0,0.23113371]
[1764559663595,0.0521,86531.0,86530.0,0.24261971]
[1764559664415,0.06056575,86537.0,86536.0,0.23111768]
[1764559664416,0.04901,86537.0,86536.0,0.23111768]
[1764559664628,0.05633,86537.0,86536.0,0.23111768]
[1764559665647,0.05633,86537.0,86534.0,0.24267777]
[1764559665783,0.05633,86537.0,86532.0,0.01155641]
[1764559665784,0.13435575,86537.0,86532.0,0.01155641]
[1764559665987,0.13435575,86537.0,86534.0,0.01155615]
[1764559666590,0.13935575,86537.0,86534.0,0.01155615]
[1764559666792,0.13435575,86537.0,86534.0,0.01155615]
[1764559666993,0.13435575,86537.0,86536.0,0.00063532]
[1764559667311,0.1278,86537.0,86536.0,0.00063532]
[1764559667927,0.1228,86537.0,86536.0,0.00063532]
[1764559668713,0.11548,86537.0,86536.0,0.00063532]
[1764559668929,0.1228,86537.0,86536.0,0.00063532]
[1764559669742,0.06133,86537.0,86536.0,0.00063532]
[1764559670539,0.005,86537.0,86536.0,0.00063532]
[1764559671544,0.00732,86538.0,86537.0,0.23111501]
[1764559671725,0.00732,86538.0,86537.0,0.23171856]
[1764559672194,0.01155628,86533.0,86520.0,0.0002]
[1764559672389,0.24249194,86522.0,86520.0,0.0002]
[1764559672654,0.24276278,86505.0,86496.0,0.24278315]
[1764559672811,0.24276278,86505.0,86491.0,0.01156189]
[1764559672812,0.10465,86497.0,86491.0,0.01156189]
[1764559673019,0.06617,86496.0,86495.0,0.10397112]
[1764559673380,0.06617,86496.0,86495.0,0.10530607]
[1764559673731,0.01156029,86503.0,86499.0,0.01156082]
[1764559674100,0.01156029,86503.0,86502.0,0.00111237]
[1764559674647,0.17011029,86503.0,86502.0,0.00111237]
[1764559675476,0.06617,86503.0,86502.0,0.00111237]
[1764559676245,0.16255,86503.0,86502.0,0.00111237]
[1764559677275,0.17388686,86503.0,86502.0,0.00111237]
[1764559680576,0.17720686,86503.0,86502.0,0.00111237]
[1764559680976,0.18320686,86503.0,86502.0,0.00111237]
[1764559681183,0.01156162,86493.0,86490.0,0.0002]
[1764559681447,0.11925686,86491.0,86490.0,0.0002]
[1764559681980,0.21163686,86491.0,86490.0,0.0002]
[1764559682534,0.21463686,86491.0,86490.0,0.0002]
[1764559682918,0.11824,86491.0,86490.0,0.0002]
[1764559683348,0.11524,86491.0,86490.0,0.0002]
[1764559683548,0.04907,86491.0,86490.0,0.0002]
[1764559683757,0.11924,86491.0,86490.0,0.0002]
[1764559684357,0.21162,86491.0,86490.0,0.0002]
[1764559685077,0.2043,86491.0,86490.0,0.0002]
[1764559685289,0.11924,86491.0,86490.0,0.0002]
[1764559686513,0.11192,86491.0,86490.0,0.0002]
[1764559686723,0.11924,86491.0,86490.0,0.0002]
[1764559686921,0.21162,86491.0,86490.0,0.0002]
[1764559687144,0.54595686,86491.0,86490.0,0.0002]
[1764559689033,0.60447985,86491.0,86490.0,0.0002]
[1764559689242,0.60847985,86491.0,86490.0,0.0002]
[1764559690080,0.60447985,86491.0,86490.0,0.0002]
[1764559690475,0.61447985,86491.0,86490.0,0.0002]
[1764559690938,0.61547985,86491.0,86490.0,0.0002]
[1764559691137,0.64000518,86491.0,86490.0,0.0002]
[1764559692476,0.64000518,86491.0,86490.0,0.00058151]
[1764559698212,0.67063496,86491.0,86490.0,0.00058151]
[1764559698769,0.64000518,86491.0,86490.0,0.00058151]
[1764559700508,0.68111376,86491.0,86490.0,0.00058151]
[1764559701090,0.64000518,86491.0,86490.0,0.00058151]
[1764559703415,0.62048821,86491.0,86490.0,0.00058151]
[1764559703617,0.28417488,86491.0,86490.0,0.00058151]
[1764559703816,0.24314533,86491.0,86490.0,0.00058151]
[1764559704024,0.22995686,86491.0,86490.0,0.00058151]
[1764559704225,0.48572012,86491.0,86490.0,0.00058151]
[1764559704595,0.25448219,86491.0,86490.0,0.00058151]
[1764559704764,0.21263686,86491.0,86490.0,0.00058151]
[1764559704972,0.23716219,86491.0,86490.0,0.00058151]
[1764559705132,0.21963686,86491.0,86490.0,0.00058151]
[1764559705341,0.22063686,86491.0,86490.0,0.00058151]
[1764559705644,0.21662,86491.0,86490.0,0.00058151]
[1764559706048,0.2093,86491.0,86490.0,0.00058151]
[1764559706257,0.21662,86491.0,86490.0,0.00058151]
[1764559706952,0.009,86491.0,86490.0,0.00058151]
[1764559707161,0.01632,86491.0,86490.0,0.00058151]
[1764559707755,0.009,86491.0,86490.0,0.00058151]
[1764559707949,0.01632,86491.0,86490.0,0.00058151]
[1764559708152,0.16687,86491.0,86490.0,0.00058151]
[1764559708569,0.18220686,86491.0,86490.0,0.00058151]
[1764559708877,0.2111116,86491.0,86490.0,0.00058151]
[1764559709463,0.18220686,86491.0,86490.0,0.00058151]
[1764559711178,0.06738,86491.0,86490.0,0.00058151]
[1764559711383,0.005,86491.0,86490.0,0.00058151]
[1764559711560,0.01232,86491.0,86490.0,0.00058151]
[1764559712361,0.005,86491.0,86490.0,0.00058151]
[1764559712562,0.01232,86491.0,86490.0,0.00058151]
[1764559713304,0.005,86491.0,86490.0,0.00058151]
[1764559713540,0.005,86491.0,86490.0,0.10455263]
[1764559714765,0.00732,86497.0,86494.0,0.01156149]
[1764559715120,0.00732,86497.0,86495.0,0.23122723]
[1764559715320,0.00011839,86505.0,86504.0,0.23120318]
[1764559715730,0.00743839,86505.0,86504.0,0.23120318]
[1764559716780,0.16598839,86505.0,86504.0,0.23120318]
[1764559717634,0.06981839,86505.0,86504.0,0.23120318]
[1764559717834,0.16598839,86505.0,86504.0,0.23120318]
[1764559718034,0.00011839,86505.0,86504.0,0.23120318]
[1764559718261,0.00511839,86505.0,86504.0,0.23220318]
[1764559718581,0.00743839,86505.0,86504.0,0.23120318]
[1764559718926,0.00711839,86505.0,86504.0,0.23220318]
[1764559719179,0.00011839,86505.0,86504.0,0.23120318]
[1764559719477,0.00511839,86505.0,86504.0,0.23220318]
[1764559721158,0.00011839,86505.0,86504.0,0.23120318]
[1764559721690,0.00511839,86505.0,86504.0,0.23320318]
[1764559721850,0.00011839,86505.0,86504.0,0.23220318]
[1764559722265,0.00311839,86505.0,86504.0,0.23320318]
[1764559723529,0.06549839,86505.0,86504.0,0.23320318]
[1764559723686,0.16166839,86505.0,86504.0,0.23320318]
[1764559724660,0.16166839,86505.0,86504.0,0.23220318]
[1764559724901,0.06549839,86505.0,86504.0,0.23220318]
[1764559725105,0.06249839,86505.0,86504.0,0.23120318]
[1764559725274,0.16566839,86505.0,86504.0,0.23220318]
[1764559726415,0.01443839,86505.0,86504.0,0.23220318]
[1764559727029,0.07571839,86505.0,86504.0,0.23220318]
[1764559728152,0.00711839,86505.0,86504.0,0.23220318]
[1764559728343,0.01443839,86505.0,86504.0,0.23220318]
[1764559729133,0.00711839,86505.0,86504.0,0.23220318]
[1764559730544,0.00143921,86532.0,86531.0,0.23113103]
[1764559730806,0.00155773,86532.0,86531.0,0.23113103]